fUST/lending_fUST_20260617
["ID","MTS","AMOUNT","RATE_DAILY","PERIOD"]
[425303812,1781677844000,-644.71939188,0.00013983,2]
[425303814,1781677844000,-1079.42264414,0.00013983,2]
[425303811,1781677844000,-940.04175221,0.00013983,2]
[425303807,1781677844000,-1769.06752395,0.00013983,2]
[425303810,1781677844000,-1769.06752395,0.00013983,2]
[425303813,1781677844000,-184.30637986,0.00013983,2]
[425303824,1781677846000,-753.97460796,0.00013983,2]
[425303825,1781677846000,-877.72609759,0.00013983,2]
[425303832,1781677847000,-1833.3972521,0.00013983,2]
[425303835,1781677847000,-3164.3078499,0.00013983,2]
[425303826,1781677847000,-955.67115451,0.00013983,2]
[425303833,1781677847000,-1833.3972521,0.00013983,2]
[425303829,1781677847000,-1833.3972521,0.00013983,2]
[425303828,1781677847000,-1833.3972521,0.00013983,2]
[425303830,1781677847000,-1833.3972521,0.00013983,2]
[425303831,1781677847000,-1833.3972521,0.00013983,2]
[425303837,1781677847000,-12519.12770788,0.00013984,2]
[425303836,1781677847000,-25908.11524623,0.00013984,2]
[425303827,1781677847000,-1833.3972521,0.00013983,2]
[425303834,1781677847000,-1833.3972521,0.00013983,2]
[425303842,1781677870000,-2159.06647314,0.00013844,2]
[425303850,1781678663000,162.600348,0.0001,30]
[425303852,1781678785000,152.0,0.00010025,30]
[425303861,1781678916000,152.0,0.00010012,30]
[425303907,1781679032000,-2238.35,0.00012962,2]
[425303909,1781679032000,-160.62840944,0.00013093,2]
[425303913,1781679032000,-514.0109102,0.00013093,2]
[425303914,1781679032000,-802.33890514,0.00013093,2]
[425303911,1781679032000,-289.13113699,0.00013093,2]
[425303918,1781679032000,-169.062,0.00013507,2]
[425303916,1781679032000,-357.55325927,0.00013093,2]
[425303923,1781679032000,-416.42130895,0.00013682,2]
[425303921,1781679032000,-14596.67493635,0.00013682,2]
[425303919,1781679032000,-162.48,0.00013598,2]
[425304020,1781679038000,-2028.97951315,0.00013682,2]
[425304019,1781679038000,-45134.53129323,0.00013682,2]
[425304022,1781679038000,-292797.7555736,0.00013682,2]
[425304021,1781679038000,-6949.79294667,0.00013682,2]
[425304103,1781679043000,-13429.38261749,0.00013682,2]
[425304104,1781679043000,-7778.05196821,0.00013682,2]
[425304106,1781679043000,-5910.75550283,0.00013682,2]
[425304105,1781679043000,-4135.43088264,0.00013682,2]
[425304108,1781679046000,-365.14969999,0.00013682,2]
[425304118,1781679106000,152.0,0.00010012,30]
[425304143,1781679654000,-151.0,0.00011959,2]
[425304145,1781679672000,152.0,0.00010017,30]
[425304203,1781680205000,162.60034799,0.0001,30]
[425304209,1781680231000,-300.0,0.00012574,2]
[425304207,1781680231000,-184.21329258,0.00011746,2]
[425304208,1781680231000,-168.146128,0.00011865,2]
[425304214,1781680232000,-300.0,0.00012574,2]
[425304210,1781680232000,-300.0,0.00012574,2]
[425304212,1781680232000,-300.0,0.00012574,2]
[425304211,1781680232000,-300.0,0.00012574,2]
[425304213,1781680232000,-300.0,0.00012574,2]
[425304215,1781680232000,-88.59812423,0.00012574,2]
[425304216,1781680232000,-211.40187577,0.00012574,2]
[425304217,1781680232000,-217.50950764,0.00012574,2]
[425304219,1781680232000,-300.0,0.00012574,2]
[425304222,1781680232000,-49.38605302,0.00012574,2]
[425304220,1781680232000,-300.0,0.00012574,2]
[425304221,1781680232000,-300.0,0.00012574,2]
[425304218,1781680232000,-82.49049236,0.00012574,2]
[425304268,1781680238000,-500.0,0.00013782,2]
[425304269,1781680238000,-500.0,0.00013782,2]
[425304270,1781680238000,-516.09,0.00013782,2]
[425304281,1781680238000,-151.0,0.00014185,2]
[425304277,1781680238000,-311.93194188,0.00014071,2]
[425304272,1781680238000,-720.0,0.00013832,2]
[425304276,1781680238000,-173.46899226,0.00014071,2]
[425304275,1781680238000,-500.0,0.00014071,2]
[425304273,1781680238000,-160.0,0.00013871,2]
[425304288,1781680238000,-171.69143739,0.00014683,2]
[425304271,1781680238000,-152.0,0.00013801,2]
[425304278,1781680238000,-5004.85413562,0.00014092,2]
[425304280,1781680238000,-151.0,0.00014185,2]
[425304279,1781680238000,-164.15543101,0.00014093,2]
[425304282,1781680238000,-151.0,0.00014185,2]
[425304284,1781680238000,-506.67903297,0.00014345,2]
[425304285,1781680238000,-412.016786,0.00014421,2]
[425304286,1781680238000,-159.28368088,0.00014539,2]
[425304283,1781680238000,-153.45277655,0.00014185,2]
[425304267,1781680238000,-500.0,0.00013782,2]
[425304274,1781680238000,-152.0,0.00014015,2]
[425304263,1781680238000,-500.0,0.00013782,2]
[425304253,1781680238000,-501.83821776,0.00013698,2]
[425304266,1781680238000,-500.0,0.00013782,2]
[425304242,1781680238000,-250.61394698,0.00012574,2]
[425304245,1781680238000,-300.0,0.00012574,2]
[425304244,1781680238000,-300.0,0.00012574,2]
[425304243,1781680238000,-300.0,0.00012574,2]
[425304246,1781680238000,-600.0,0.00012574,2]
[425304247,1781680238000,-230.40438206,0.00013367,2]
[425304256,1781680238000,-500.0,0.00013698,2]
[425304252,1781680238000,-500.0,0.00013698,2]
[425304248,1781680238000,-203.78016205,0.00013367,2]
[425304249,1781680238000,-164.2955921,0.00013682,2]
[425304255,1781680238000,-524.29841156,0.00013698,2]
[425304251,1781680238000,-500.0,0.00013698,2]
[425304254,1781680238000,-511.32483577,0.00013698,2]
[425304250,1781680238000,-156.0,0.00013682,2]
[425304257,1781680238000,-263.52262408,0.00013718,2]
[425304258,1781680238000,-189.8954589,0.00013724,2]
[425304260,1781680238000,-500.0,0.00013782,2]
[425304261,1781680238000,-500.0,0.00013782,2]
[425304265,1781680238000,-500.0,0.00013782,2]
[425304262,1781680238000,-500.0,0.00013782,2]
[425304259,1781680238000,-500.0,0.00013782,2]
[425304264,1781680238000,-500.0,0.00013782,2]
[425304293,1781680238000,-500.0,0.00014683,2]
[425304292,1781680238000,-500.0,0.00014683,2]
[425304287,1781680238000,-477.94610916,0.00014683,2]
[425304315,1781680238000,-500.0,0.00014683,2]
[425304321,1781680238000,-500.0,0.00014683,2]
[425304314,1781680238000,-500.0,0.00014683,2]
[425304316,1781680238000,-500.0,0.00014683,2]
[425304317,1781680238000,-500.0,0.00014683,2]
[425304322,1781680238000,-500.0,0.00014683,2]
[425304326,1781680238000,-152.0,0.00014784,7]
[425304323,1781680238000,-500.0,0.00014683,2]
[425304332,1781680238000,-193.198,0.00014876,2]
[425304312,1781680238000,-500.0,0.00014683,2]
[425304325,1781680238000,-376.54083961,0.00014713,2]
[425304329,1781680238000,-152.0,0.00014788,7]
[425304334,1781680238000,-187.177154,0.00015068,2]
[425304324,1781680238000,-11752.44567619,0.00014684,2]
[425304330,1781680238000,-445.0,0.00014876,2]
[425304327,1781680238000,-152.0,0.00014784,7]
[425304333,1781680238000,-412.016786,0.00015028,2]
[425304336,1781680238000,-864.0,0.00015215,2]
[425304335,1781680238000,-185.21685835,0.0001521,7]
[425304289,1781680238000,-393.50772709,0.00014683,2]
[425304328,1781680238000,-152.0,0.00014788,7]
[425304313,1781680238000,-500.0,0.00014683,2]
[425304331,1781680238000,-834.15,0.00014876,2]
[425304310,1781680238000,-500.0,0.00014683,2]
[425304290,1781680238000,-500.0,0.00014683,2]
[425304291,1781680238000,-500.0,0.00014683,2]
[425304295,1781680238000,-500.0,0.00014683,2]
[425304294,1781680238000,-500.0,0.00014683,2]
[425304297,1781680238000,-500.0,0.00014683,2]
[425304300,1781680238000,-500.0,0.00014683,2]
[425304302,1781680238000,-500.0,0.00014683,2]
[425304299,1781680238000,-500.0,0.00014683,2]
[425304305,1781680238000,-500.0,0.00014683,2]
[425304303,1781680238000,-500.0,0.00014683,2]
[425304298,1781680238000,-500.0,0.00014683,2]
[425304307,1781680238000,-500.0,0.00014683,2]
[425304296,1781680238000,-276.81344681,0.00014683,2]
[425304320,1781680238000,-500.0,0.00014683,2]
[425304308,1781680238000,-504.21868562,0.00014683,2]
[425304319,1781680238000,-500.0,0.00014683,2]
[425304311,1781680238000,-500.0,0.00014683,2]
[425304304,1781680238000,-500.0,0.00014683,2]
[425304306,1781680238000,-500.0,0.00014683,2]
[425304301,1781680238000,-500.0,0.00014683,2]
[425304318,1781680238000,-160.03405087,0.00014683,2]
[425304309,1781680238000,-500.0,0.00014683,2]
[425304340,1781680239000,-311.73697467,0.00015215,2]
[425304346,1781680239000,-1224.43987377,0.00015519,2]
[425304341,1781680239000,-219.617,0.00015234,2]
[425304343,1781680239000,-958.0,0.00015234,2]
[425304338,1781680239000,-160.0,0.00015215,2]
[425304347,1781680239000,-412.016786,0.00015635,2]
[425304339,1781680239000,-160.0,0.00015215,2]
[425304337,1781680239000,-151.0,0.00015215,2]
[425304345,1781680239000,-169.062,0.00015518,2]
[425304344,1781680239000,-1841.0,0.00015234,2]
[425304352,1781680239000,-5568.48408978,0.00015673,2]
[425304351,1781680239000,-7031.587956,0.00015673,2]
[425304354,1781680239000,-363.51951137,0.00015673,2]
[425304348,1781680239000,-806.58998702,0.00015656,2]
[425304350,1781680239000,-2725.57196112,0.00015673,2]
[425304353,1781680239000,-641315.85818882,0.00015673,2]
[425304349,1781680239000,-258234.11241884,0.00015673,2]
[425304342,1781680239000,-153.12,0.00015234,2]
[425304356,1781680240000,-18681.69437995,0.00015673,2]
[425304459,1781680296000,152.0,0.00010017,30]
[425304460,1781680296000,152.0,0.00010017,30]
[425304468,1781680688000,152.0,0.00010021,30]
[425304647,1781681448000,-190.49851339,0.00014683,2]
[425304646,1781681448000,-200.0,0.00014163,2]
[425304650,1781681448000,-500.0,0.00014899,2]
[425304651,1781681448000,-523.32853549,0.00014899,2]
[425304649,1781681448000,-358.79683314,0.00014873,2]
[425304653,1781681448000,-779.11321404,0.000149,2]
[425304652,1781681448000,-476.67996007,0.00014899,2]
[425304654,1781681448000,-21267.017,0.000149,2]
[425304648,1781681448000,-293.5610453,0.00014863,2]
[425304663,1781681754000,152.0,0.00010022,30]
[425304664,1781681881000,164.07996204,0.0001,30]
[425304666,1781682191000,152.0,0.00010024,30]
[425304728,1781682632000,-275.36291204,0.00012011,2]
[425304719,1781682632000,-3109.56323859,0.00012011,2]
[425304735,1781682632000,-98.38627928,0.00012328,2]
[425304730,1781682632000,-200.0,0.00012257,2]
[425304726,1781682632000,-4662.90618457,0.00012011,2]
[425304737,1781682632000,-300.0,0.00012328,2]
[425304739,1781682632000,-177.54196519,0.00012329,2]
[425304741,1781682632000,-433.45811007,0.00012329,2]
[425304732,1781682632000,-64.77072072,0.00012328,2]
[425304743,1781682632000,-1693.52350633,0.00012329,2]
[425304808,1781682638000,-5006.49,0.00012329,2]
[425304810,1781682638000,-3476.73,0.00012329,2]
[425304811,1781682638000,-2897.28,0.00012329,2]
[425304812,1781682638000,-2134.78334353,0.00012329,2]
[425304809,1781682638000,-4172.08,0.00012329,2]
[425304807,1781682638000,-6007.79,0.00012329,2]
[425304806,1781682638000,-7209.35,0.00012329,2]
[425304805,1781682638000,-4722.48641841,0.00012329,2]
[425305164,1781682664000,152.0,0.00010022,30]
[425305165,1781682688000,184.16351066,0.0002335,120]
[425305182,1781683253000,-2239.81708851,0.00011527,9]
[425305205,1781683744000,166.59876884,0.0001,30]
[425305216,1781683832000,-988.70617945,9.51e-05,2]
[425305215,1781683832000,-621.82,9.51e-05,2]
[425305218,1781683832000,-3845.35,9.606e-05,2]
[425305214,1781683832000,-306.28934673,9.51e-05,2]
[425305217,1781683832000,-239.48479963,9.606e-05,2]
[425305220,1781683832000,-702.33928466,9.606e-05,2]
[425305224,1781683832000,-318.79169431,0.00011805,2]
[425305222,1781683832000,-60.82591571,9.606e-05,2]
[425305336,1781683840000,-130.59125781,0.00011805,2]
[425305335,1781683840000,-832.13529868,0.00011805,2]
[425305334,1781683840000,-1610.4917356,0.00011805,2]
[425305369,1781683841000,-778.75287356,0.00011805,2]
[425305367,1781683841000,-3074.09052585,0.00011805,2]
[425305370,1781683841000,-253.59914664,0.00012,2]
[425305372,1781683841000,-417.48442279,0.00012083,2]
[425305371,1781683841000,-98.15597022,0.00012083,2]
[425305373,1781683841000,-492.96622303,0.00012229,2]
[425305368,1781683841000,-1765.38613729,0.00011805,2]
[425305663,1781683849000,-332.48,0.00012329,2]
[425305665,1781683849000,-277.06,0.00012329,2]
[425305666,1781683849000,-230.89,0.00012329,2]
[425305670,1781683849000,-160.34,0.00012329,2]
[425305678,1781683849000,-342.8973241,0.00013563,2]
[425305668,1781683849000,-192.4,0.00012329,2]
[425305680,1781683849000,-609.59524285,0.00013563,2]
[425305674,1781683849000,-238.054855,0.000128,2]
[425305672,1781683849000,-801.71,0.00012329,2]
[425305676,1781683849000,-238.054855,0.00013339,2]
[425305713,1781683849000,-500.0,0.00014696,2]
[425305690,1781683849000,-500.0,0.00013698,2]
[425305684,1781683849000,-10283.38996666,0.00013649,2]
[425305682,1781683849000,-951.54007438,0.00013563,2]
[425305688,1781683849000,-501.07135036,0.00013698,2]
[425305686,1781683849000,-500.0,0.00013698,2]
[425305696,1781683849000,-238.054855,0.00013878,2]
[425305694,1781683849000,-1000.0,0.00013699,2]
[425305700,1781683849000,-394.85780251,0.00013995,2]
[425305698,1781683849000,-156.25180386,0.00013898,2]
[425305702,1781683849000,-289.4588381,0.00014,2]
[425305659,1781683849000,-478.76,0.00012329,2]
[425305692,1781683849000,-500.0,0.00013698,2]
[425305657,1781683849000,-574.52,0.00012329,2]
[425305633,1781683849000,-500.0,0.00012328,2]
[425305655,1781683849000,-689.42,0.00012329,2]
[425305615,1781683849000,-501.26747316,0.00012328,2]
[425305614,1781683849000,-9790.42374368,0.00012229,2]
[425305617,1781683849000,-500.0,0.00012328,2]
[425305619,1781683849000,-500.0,0.00012328,2]
[425305621,1781683849000,-500.0,0.00012328,2]
[425305631,1781683849000,-500.0,0.00012328,2]
[425305623,1781683849000,-500.0,0.00012328,2]
[425305625,1781683849000,-500.0,0.00012328,2]
[425305635,1781683849000,-500.0,0.00012328,2]
[425305627,1781683849000,-236.39364228,0.00012328,2]
[425305629,1781683849000,-500.0,0.00012328,2]
[425305637,1781683849000,-342.0113458,0.00012328,2]
[425305639,1781683849000,-500.0,0.00012328,2]
[425305640,1781683849000,-500.0,0.00012328,2]
[425305648,1781683849000,-1429.58,0.00012329,2]
[425305642,1781683849000,-511.56274408,0.00012328,2]
[425305651,1781683849000,-992.77,0.00012329,2]
[425305644,1781683849000,-2058.6,0.00012329,2]
[425305649,1781683849000,-1191.32,0.00012329,2]
[425305646,1781683849000,-1715.5,0.00012329,2]
[425305653,1781683849000,-827.31,0.00012329,2]
[425305661,1781683849000,-398.97,0.00012329,2]
[425305715,1781683849000,-2236.40277164,0.00014696,2]
[425305770,1781683849000,-211.482835,0.00014698,2]
[425305712,1781683849000,-2236.40277164,0.00014696,2]
[425305765,1781683849000,-151.0,0.00014698,2]
[425305766,1781683849000,-211.482835,0.00014698,2]
[425305768,1781683849000,-211.482835,0.00014698,2]
[425305772,1781683849000,-211.482835,0.00014698,2]
[425305776,1781683849000,-151.0,0.00014698,2]
[425305774,1781683849000,-151.0,0.00014698,2]
[425305787,1781683849000,-528.01737883,0.00014698,2]
[425305778,1781683849000,-31951.49636022,0.00014698,2]
[425305782,1781683849000,-379.57039506,0.00014698,2]
[425305780,1781683849000,-7198.92295883,0.00014698,2]
[425305785,1781683849000,-11089.44682261,0.00014698,2]
[425305789,1781683849000,-958.5,0.00014698,2]
[425305794,1781683849000,-1263.729024,0.00014698,2]
[425305791,1781683849000,-3846.10013392,0.00014698,2]
[425305796,1781683849000,-566.25839924,0.00014698,2]
[425305798,1781683849000,-496.47880465,0.00014698,2]
[425305804,1781683849000,-3634.422095,0.00014698,2]
[425305802,1781683849000,-1139.88331,0.00014698,2]
[425305808,1781683849000,-1466.42816764,0.00014698,2]
[425305806,1781683849000,-18331.05228773,0.00014698,2]
[425305810,1781683849000,-2653.8385751,0.00014698,2]
[425305762,1781683849000,-2310.94953068,0.00014696,2]
[425305760,1781683849000,-2310.94953068,0.00014696,2]
[425305756,1781683849000,-2310.94953068,0.00014696,2]
[425305758,1781683849000,-2310.94953068,0.00014696,2]
[425305706,1781683849000,-360.06141947,0.000141,2]
[425305708,1781683849000,-305.98192365,0.000141,2]
[425305710,1781683849000,-238.054855,0.00014417,2]
[425305719,1781683849000,-2236.40277164,0.00014696,2]
[425305734,1781683849000,-2236.40277164,0.00014696,2]
[425305726,1781683849000,-500.0,0.00014696,2]
[425305723,1781683849000,-2236.40277164,0.00014696,2]
[425305721,1781683849000,-209.76881329,0.00014696,2]
[425305717,1781683849000,-2236.40277164,0.00014696,2]
[425305724,1781683849000,-2236.40277164,0.00014696,2]
[425305754,1781683849000,-2310.94953068,0.00014696,2]
[425305736,1781683849000,-2236.40277163,0.00014696,2]
[425305732,1781683849000,-2236.40277164,0.00014696,2]
[425305728,1781683849000,-2236.40277164,0.00014696,2]
[425305739,1781683849000,-2236.40277164,0.00014696,2]
[425305741,1781683849000,-2236.40277164,0.00014696,2]
[425305746,1781683849000,-2310.94953068,0.00014696,2]
[425305744,1781683849000,-2236.40277164,0.00014696,2]
[425305752,1781683849000,-2310.94953068,0.00014696,2]
[425305748,1781683849000,-2310.94953068,0.00014696,2]
[425305742,1781683849000,-2236.40277164,0.00014696,2]
[425305750,1781683849000,-2310.94953068,0.00014696,2]
[425305730,1781683849000,-2236.40277164,0.00014696,2]
[425305704,1781683849000,-163.369,0.00014,2]
[425305855,1781683863000,152.0,0.0001002,30]
[425305866,1781684442000,1000.0,0.00024658,120]
[425305868,1781684460000,1000.0,0.00024658,120]
[425305869,1781684477000,1160.19,0.00024658,120]
[425305870,1781684479000,1000.0,0.00024658,120]
[425305871,1781684498000,1000.0,0.00024658,120]
[425305873,1781684515000,1000.0,0.00024658,120]
[425305874,1781684533000,1000.0,0.00024658,120]
[425305875,1781684549000,630.0,0.00024658,120]
[425305886,1781685031000,-1228.41106794,0.00013265,2]
[425305884,1781685031000,-288.85077589,0.00013265,2]
[425305885,1781685031000,-402.13044983,0.00013265,2]
[425305883,1781685031000,-300.0,0.00013049,9]
[425305891,1781685032000,-614.22574993,0.00013265,2]
[425305890,1781685032000,-513.97896409,0.00013265,2]
[425305888,1781685032000,-1139.03941914,0.00013265,2]
[425305894,1781685032000,-383.87845873,0.00013446,2]
[425305889,1781685032000,-285.54386894,0.00013265,2]
[425305887,1781685032000,-778.43348223,0.00013265,2]
[425305892,1781685032000,-299.51463067,0.00013265,2]
[425305896,1781685032000,-163.88,0.00013548,2]
[425305895,1781685032000,-151.790273,0.00013548,2]
[425305898,1781685032000,-91.01397505,0.00013548,2]
[425305893,1781685032000,-1426.29162535,0.00013265,2]
[425305897,1781685032000,-151.0,0.00013548,2]
[425305981,1781685038000,-500.0,0.00013698,2]
[425305983,1781685038000,-500.0,0.00013698,2]
[425305985,1781685038000,-500.0,0.00013698,2]
[425305996,1781685038000,-500.0,0.00013698,2]
[425306006,1781685038000,-500.0,0.00013698,2]
[425306000,1781685038000,-513.74985369,0.00013698,2]
[425305994,1781685038000,-500.0,0.00013698,2]
[425305990,1781685038000,-289.49316265,0.00013698,2]
[425305987,1781685038000,-500.0,0.00013698,2]
[425305993,1781685038000,-293.29685609,0.00013698,2]
[425306002,1781685038000,-151.0,0.00013698,2]
[425305979,1781685038000,-500.0,0.00013698,2]
[425305999,1781685038000,-500.0,0.00013698,2]
[425305977,1781685038000,-500.0,0.00013698,2]
[425305945,1781685038000,-59.98602495,0.00013548,2]
[425305975,1781685038000,-500.0,0.00013698,2]
[425305963,1781685038000,-500.0,0.00013698,2]
[425305965,1781685038000,-500.0,0.00013698,2]
[425305973,1781685038000,-500.0,0.00013698,2]
[425305961,1781685038000,-500.0,0.00013698,2]
[425305971,1781685038000,-500.0,0.00013698,2]
[425305969,1781685038000,-513.08440775,0.00013698,2]
[425305959,1781685038000,-500.0,0.00013698,2]
[425305957,1781685038000,-526.26596025,0.00013697,2]
[425305955,1781685038000,-167.95141601,0.00013697,2]
[425305947,1781685038000,-151.0,0.00013548,2]
[425305951,1781685038000,-2588.52442071,0.00013599,2]
[425305953,1781685038000,-8276.35504329,0.00013599,2]
[425305949,1781685038000,-192.292446,0.00013548,2]
[425305967,1781685038000,-500.0,0.00013698,2]
[425306004,1781685038000,-500.0,0.00013698,2]
[425305988,1781685038000,-500.0,0.00013698,2]
[425306010,1781685038000,-500.0,0.00013698,2]
[425306068,1781685038000,-396.11281216,0.00013719,2]
[425306065,1781685038000,-1039.82457777,0.00013719,2]
[425306072,1781685038000,-1052949.38594078,0.00013719,2]
[425306070,1781685038000,-13814.48,0.00013719,2]
[425306063,1781685038000,-14639.09332743,0.00013719,2]
[425306061,1781685038000,-1692.95689813,0.00013718,2]
[425306053,1781685038000,-1692.95689813,0.00013718,2]
[425306059,1781685038000,-1692.95689813,0.00013718,2]
[425306051,1781685038000,-1692.95689813,0.00013718,2]
[425306047,1781685038000,-1692.95689813,0.00013718,2]
[425306057,1781685038000,-1692.95689813,0.00013718,2]
[425306055,1781685038000,-1692.95689813,0.00013718,2]
[425306049,1781685038000,-1692.95689813,0.00013718,2]
[425306045,1781685038000,-1692.95689813,0.00013718,2]
[425306037,1781685038000,-1692.95689813,0.00013718,2]
[425306043,1781685038000,-1692.95689813,0.00013718,2]
[425306023,1781685038000,-151.0,0.00013699,2]
[425306012,1781685038000,-500.0,0.00013698,2]
[425306020,1781685038000,-1010.12,0.00013698,2]
[425306016,1781685038000,-1010.12,0.00013698,2]
[425306014,1781685038000,-393.11710847,0.00013698,2]
[425306018,1781685038000,-1010.12,0.00013698,2]
[425306041,1781685038000,-535.29020844,0.00013718,2]
[425306022,1781685038000,-194.487014,0.00013699,2]
[425306008,1781685038000,-500.0,0.00013698,2]
[425306027,1781685038000,-169.186268,0.00013699,2]
[425306029,1781685038000,-169.186268,0.00013699,2]
[425306031,1781685038000,-169.186268,0.00013699,2]
[425306033,1781685038000,-500.0,0.00013718,2]
[425306035,1781685038000,-1692.95689813,0.00013718,2]
[425306039,1781685038000,-1692.95689813,0.00013718,2]
[425306025,1781685038000,-169.186268,0.00013699,2]
[425306365,1781685043000,-1967.51071206,0.00013719,2]
[425306927,1781685072000,-799.77576138,0.00013582,2]
[425306928,1781685243000,162.60034798,0.00011643,30]
[425306939,1781685848000,278.02,0.00023395,120]
[425306958,1781686232000,-352.0274,0.00012917,9]
[425306955,1781686232000,-151.0,0.00012788,9]
[425306959,1781686232000,-19.34946153,0.00013094,2]
[425306957,1781686232000,-799.77576138,0.00012917,9]
[425306956,1781686232000,-174.995,0.00012917,9]
[425307200,1781686240000,-4807.63988387,0.00013418,2]
[425307202,1781686240000,-124992.36011612,0.00013518,2]
[425307191,1781686240000,-498.19580677,0.00013418,2]
[425307186,1781686240000,-55189.36451594,0.00013418,2]
[425307172,1781686240000,-153.78275799,0.00013094,2]
[425307170,1781686240000,-4472.9776,0.00012963,9]
[425307162,1781686240000,-527.0224,0.00012963,9]
[425307174,1781686240000,-1062.2998516,0.00013418,2]
[425307722,1781686248000,-749.68230215,0.00013518,2]
[425307721,1781686248000,-615.908,0.00013383,9]
[425307723,1781686248000,-424.17702131,0.00013518,2]
[425307724,1781686248000,-29473.95754665,0.00013518,2]
[425307727,1781686248000,-20175.42894494,0.00013518,2]
[425307732,1781686248000,-1899.83256176,0.00013518,2]
[425307738,1781686248000,-21160.61150848,0.00013518,2]
[425307740,1781686248000,-615.908,0.00013518,2]
[425307747,1781686248000,-2199.44083411,0.00013518,2]
[425307730,1781686248000,-30083.68409102,0.00013518,2]
[425307996,1781686853000,-4570.8568233,0.00011372,2]
[425307997,1781686870000,-1766.96752692,0.00011487,2]
[425307998,1781686887000,-500.0,0.00011603,2]
[425308000,1781686904000,-500.0,0.00011603,2]
[425308001,1781686920000,-500.0,0.00011603,2]
[425308002,1781686922000,172.83312791,0.0001,30]
[425308003,1781686937000,-241.94368111,0.00011603,2]
[425308004,1781686954000,-156.0,0.0001172,2]
[425308008,1781687043000,212.80126636,0.0001,30]
[425308104,1781687432000,-9097.8958781,0.00011555,2]
[425308101,1781687432000,-307.0373061,0.00011326,2]
[425308103,1781687432000,-2157.98722292,0.00011326,2]
[425308102,1781687432000,-2534.97547098,0.00011326,2]
[425308106,1781687432000,-152.00197301,0.00012581,2]
[425308108,1781687432000,-433.45811007,0.00012603,2]
[425308105,1781687432000,-433.45,0.00012329,2]
[425308107,1781687432000,-2362.62460102,0.00012603,2]
[425308109,1781687432000,-449.72184752,0.00012603,2]
[425308174,1781687438000,-300.0,0.00012703,2]
[425308177,1781687438000,-300.0,0.00012703,2]
[425308186,1781687438000,-300.0,0.00012703,2]
[425308175,1781687438000,-300.0,0.00012703,2]
[425308180,1781687438000,-300.0,0.00012703,2]
[425308182,1781687438000,-300.0,0.00012703,2]
[425308199,1781687438000,-300.0,0.00012703,2]
[425308187,1781687438000,-300.0,0.00012703,2]
[425308189,1781687438000,-300.0,0.00012703,2]
[425308191,1781687438000,-300.0,0.00012703,2]
[425308197,1781687438000,-300.0,0.00012703,2]
[425308193,1781687438000,-300.0,0.00012703,2]
[425308201,1781687438000,-300.0,0.00012703,2]
[425308172,1781687438000,-7724.23770264,0.00012603,2]
[425308184,1781687438000,-300.0,0.00012703,2]
[425308195,1781687438000,-300.0,0.00012703,2]
[425308203,1781687438000,-20145.16958743,0.00012703,2]
[425308230,1781687438000,-69188.69119078,0.00013318,2]
[425308232,1781687438000,-286.93,0.00013318,2]
[425308228,1781687438000,-196.04163202,0.00013308,7]
[425308223,1781687438000,-322.53753115,0.00013263,2]
[425308219,1781687438000,-1928.84902463,0.00013263,2]
[425308221,1781687438000,-179.18751731,0.00013263,2]
[425308215,1781687438000,-695.0807296,0.00013263,2]
[425308225,1781687438000,-573.40005539,0.00013263,2]
[425308217,1781687438000,-1235.69907484,0.00013263,2]
[425308213,1781687438000,-386.15596089,0.00013263,2]
[425308207,1781687438000,-185.21685837,0.00013047,7]
[425308209,1781687438000,-1095.83624796,0.00013218,2]
[425308205,1781687438000,-166.87044681,0.00012718,2]
[425308227,1781687438000,-895.04164895,0.00013263,2]
[425308211,1781687438000,-330.85779,0.00013251,2]
[425309238,1781687447000,-342.17415903,0.00012477,2]